[Event "TUR-ch Youth U17 2019"]
[Site "Belek"]
[Date "2019.01.21"]
[Round "2"]
[White "Acar, Utku Cengiz"]
[Black "Taskin, Arda"]
[Result "1-0"]
[ECO "E90"]
[WhiteElo "2078"]
[BlackElo "1693"]
[Annotator "NA RC"]
[PlyCount "69"]
[EventDate "2019.01.20"]
[EventType "swiss"]
[EventCountry "TUR"]
[SourceTitle "playchess.com"]
[Source "ChessBase"]
[SourceQuality "1"]
[TimeControl "5400+30"]

1. Nf3 Nf6 {[%emt 0:00:30]} 2. c4 {[%emt 0:00:30]} g6 {[%emt 0:00:30]} 3. Nc3 {[%emt 0:00:30]} Bg7 {[%emt 0:00:30]} 4. e4 {[%emt 0:00:30]} d6 {[%emt 0:01:00]} 5. d4 {[%emt 0:00:30]} O-O {[%emt 0:00:30]} 6. h3 {[%emt 0:04:30]} c5 {[%emt 0:05:00]} 7. Be3 {[%emt 0:18:30]} Nfd7 {[%emt 0:11:30] E90: King's Indian: Classical: Early deviations and 6 h3} (7... cxd4 8. Nxd4 Nc6 9. Be2 Bd7 10. O-O Nxd4 11. Bxd4 Bc6 12. Qc2 a5 13. Rad1 Nd7 14. Bxg7 Kxg7 15. Bg4 Ne5 16. c5 Nxg4 17. hxg4 Qc8 18. cxd6 Qxg4 19. dxe7 Rfe8 {1-0 (43) Cheparinov,I (2711)-Amin,B (2709) Zagreb 2018}) 8. d5 {[%emt 0:16:30]} f5 $146 {[%emt 0:06:30]} ({Predecessor:} 8... Na6 9. a3 Nc7 10. Bd3 a6 11. Qc2 Rb8 12. O-O b5 13. cxb5 axb5 14. b4 Ba6 15. Bf4 {0-1 (27) Ortega Farrus,A (1704)-Llopis Jordan,L (1936) Barcelona 2015}) 9. exf5 {[%emt 0:00:30]} gxf5 {[%emt 0:00:30]} 10. Ng5 {[%emt 0:00:30]} Nf6 {[%emt 0:00:30]} 11. Bd3 {[%emt 0:00:30]} Bd7 {[%emt 0:35:30]} 12. Ne6 $2 {[%emt 0:51:00]} (12. O-O $18) 12... Bxe6 $1 {[%emt 0:00:30]} 13. dxe6 {[%emt 0:00:30]} Na6 {[%emt 0:06:30]} 14. Bxf5 {[%emt 0:02:30]} Nc7 {[%emt 0:03:30]} 15. O-O {[%emt 0:02:30]} a6 {[%emt 0:02:30]} 16. a4 {[%emt 0:04:30]} Rb8 {[%emt 0:03:30]} 17. Qd3 {[%emt 0:06:30]} Qe8 {[%emt 0:01:30]} 18. a5 {[%emt 0:06:30]} b5 {[%emt 0:01:30]} 19. axb6 {[%emt 0:00:00]} Rxb6 {[%emt 0:00:30]} 20. Bc1 {[%emt 0:00:00]} Qc8 {[%emt 0:02:30]} 21. Nd5 {[%emt 0:04:30]} Ncxd5 {[%emt 0:00:30]} 22. cxd5 {[%emt 0:00:30]} c4 {[%emt 0:00:30]} 23. Qg3 {[%emt 0:00:30]} Rb3 {[%emt 0:03:30]} 24. Qh4 {[%emt 0:01:30]} c3 {[%emt 0:09:30]} 25. bxc3 {[%emt 0:03:54]} Rxc3 {[%emt 0:03:30]} 26. Bb2 {[%emt 0:03:11]} Rc4 {[%emt 0:01:30]} 27. g4 {[%emt 0:00:11]} h6 {[%emt 0:02:30]} 28. Bxf6 {[%emt 0:06:55]} Rxf6 {[%emt 0:00:30]} 29. Qh5 $16 {[%emt 0:01:04]} Rc5 {[%emt 0:05:05]} 30. Rfb1 {[%emt 0:01:30]} Kh8 {[%emt 0:01:39]} 31. Rb3 {[%emt 0:04:29]} Rxd5 {[%emt 0:08:30]} 32. Rab1 {[%emt 0:01:10]} Rb5 {[%emt 0:02:49]} 33. Rxb5 {[%emt 0:00:28]} axb5 {[%emt 0:00:07]} 34. Rxb5 {[%emt 0:00:39]} Kg8 {[%emt 0:00:38]} 35. Qf7+ {[%emt 0:00:53]} 1-0

[Event "TUR-ch Youth U17 2019"]
[Site "Belek"]
[Date "2019.01.21"]
[Round "2"]
[White "Catal, Uktenur"]
[Black "Esti, Kubra Selenay"]
[Result "1-0"]
[ECO "D07"]
[WhiteElo "1854"]
[BlackElo "1662"]
[Annotator "NA RC"]
[PlyCount "55"]
[EventDate "2019.01.20"]
[EventType "swiss"]
[EventCountry "TUR"]
[SourceTitle "playchess.com"]
[Source "ChessBase"]
[SourceQuality "1"]
[TimeControl "5400+30"]

1. d4 d5 {[%emt 0:00:30]} 2. c4 {[%emt 0:00:30]} Nc6 {[%emt 0:00:30]} 3. cxd5 {[%emt 0:00:30]} Qxd5 {[%emt 0:00:30]} 4. e3 {[%emt 0:00:30]} e5 {[%emt 0:00:00]} 5. Nc3 {[%emt 0:00:00]} Bb4 {[%emt 0:00:00]} 6. Bd2 {[%emt 0:00:00]} Bxc3 {[%emt 0:00:30]} 7. bxc3 {[%emt 0:00:00]} Nf6 {[%emt 0:01:30]} 8. f3 {[%emt 0:00:00]} Qd6 {[%emt 0:02:30]} 9. Bd3 {[%emt 0:00:00]} Ne7 {[%emt 0:03:30] D07: Queen's Gambit: Chigorin Defence} 10. Ne2 {[%emt 0:01:30]} O-O {[%emt 0:09:30]} 11. e4 {[%emt 0:06:30]} Ng6 {[%emt 0:08:30]} 12. O-O {[%emt 0:01:30]} c5 {[%emt 0:11:30]} 13. f4 {[%emt 0:06:30]} cxd4 $146 {[%emt 0:13:30]} ({Predecessor:} 13... exf4 14. e5 Nxe5 15. Bxf4 c4 16. Bxe5 {1-0 (16) Campos Moreno,J (2486)-Martinez Gutierrez,B (2035) Spain 2003}) 14. cxd4 {[%emt 0:26:00]} Bg4 $2 {[%emt 1:01:00]} (14... Nd7 $16 {keeps fighting.}) 15. fxe5 {[%emt 0:04:30] Discovered Attack (Double check)} Bxe2 {[%emt 0:15:30]} 16. exd6 {[%emt 0:00:30]} Bxd1 {[%emt 0:00:00]} 17. Rfxd1 {[%emt 0:02:30]} Rfc8 {[%emt 0:04:34]} 18. Rac1 {[%emt 0:00:30]} Nf8 {[%emt 0:01:37]} 19. e5 {[%emt 0:03:30]} N6d7 {[%emt 0:03:04]} 20. Be4 {[%emt 0:00:30]} Rab8 {[%emt 0:06:25]} 21. Rxc8 {[%emt 0:03:30]} Rxc8 {[%emt 0:00:02]} 22. Bxb7 {[%emt 0:00:00]} Rc2 {[%emt 0:00:07]} 23. Bd5 {[%emt 0:00:00]} Ne6 {[%emt 0:02:12]} 24. Bb3 {[%emt 0:00:30]} Rc8 {[%emt 0:02:04]} 25. d5 {[%emt 0:01:30]} Nd4 {[%emt 0:00:37]} 26. e6 {[%emt 0:00:30]} fxe6 {[%emt 0:02:23]} 27. dxe6 {[%emt 0:00:30]} Nc5 {[%emt 0:00:00]} 28. d7 {[%emt 0:00:00]} 1-0

[Event "TUR-ch Youth U17 2019"]
[Site "Belek"]
[Date "2019.01.21"]
[Round "2"]
[White "Sen, Irem"]
[Black "Aslan, Lina"]
[Result "1-0"]
[ECO "D11"]
[WhiteElo "1765"]
[BlackElo "1498"]
[Annotator "NA"]
[PlyCount "99"]
[EventDate "2019.01.20"]
[EventType "swiss"]
[EventCountry "TUR"]
[SourceTitle "playchess.com"]
[Source "ChessBase"]
[SourceQuality "1"]
[TimeControl "5400+30"]

1. d4 d5 2. Nf3 Nf6 3. c4 c6 4. Nbd2 Bf5 5. Nh4 Be4 6. f3 Bg6 7. Qb3 Qb6 8. Qxb6 axb6 9. Nxg6 hxg6 10. e4 e6 11. Bd3 {[%emt 1:02:30]} Na6 {[%emt 0:26:30]} 12. O-O {[%emt 0:02:30]} Nb4 {[%emt 0:12:30]} 13. Bb1 {[%emt 0:00:00]} c5 {[%emt 0:05:30]} 14. cxd5 {[%emt 0:15:25]} exd5 {[%emt 0:01:30]} 15. exd5 {[%emt 0:09:07]} Nfxd5 {[%emt 0:02:30]} 16. dxc5 {[%emt 0:01:54]} bxc5 {[%emt 0:01:30]} 17. Re1+ {[%emt 0:00:30]} Be7 {[%emt 0:00:30]} 18. Nc4 {[%emt 0:01:13]} O-O {[%emt 0:01:30]} 19. Be4 {[%emt 0:01:51]} Rfd8 {[%emt 0:02:30]} 20. a3 {[%emt 0:01:25]} Bf6 {[%emt 0:04:30]} 21. Bd2 {[%emt 0:00:38]} Bd4+ {[%emt 0:03:30]} 22. Kh1 {[%emt 0:00:18]} f5 {[%emt 0:04:30]} 23. axb4 {[%emt 0:01:56]} fxe4 {[%emt 0:00:30]} 24. Rxa8 {[%emt 0:01:26]} Rxa8 {[%emt 0:00:30]} 25. fxe4 {[%emt 0:00:30]} Nxb4 {[%emt 0:00:30]} 26. Bxb4 {[%emt 0:00:30]} cxb4 {[%emt 0:00:30]} 27. b3 {[%emt 0:00:30]} Bc3 {[%emt 0:00:30]} 28. Rd1 {[%emt 0:00:37]} Re8 {[%emt 0:02:30]} 29. Nd6 {[%emt 0:00:41]} Re7 {[%emt 0:01:30]} 30. g3 {[%emt 0:00:49]} Be5 {[%emt 0:03:30]} 31. Nc4 {[%emt 0:00:06]} b5 {[%emt 0:03:30]} 32. Nxe5 {[%emt 0:00:46]} Rxe5 {[%emt 0:00:30]} 33. Rd4 {[%emt 0:00:30]} Kf7 {[%emt 0:00:30]} 34. Rxb4 {[%emt 0:00:30]} Ke6 {[%emt 0:00:30]} 35. Rd4 {[%emt 0:00:30]} Rc5 {[%emt 0:00:30]} 36. Kg2 {[%emt 0:00:30]} Rc2+ {[%emt 0:00:30]} 37. Kh3 {[%emt 0:00:30]} Rc3 {[%emt 0:00:30]} 38. Rb4 {[%emt 0:00:30]} Rc5 {[%emt 0:00:30]} 39. Kg4 {[%emt 0:00:30]} Re5 {[%emt 0:00:30]} 40. Rd4 {[%emt 0:00:07]} Rh5 {[%emt 0:06:44]} 41. h4 {[%emt 0:00:23]} Re5 {[%emt 0:11:24]} 42. Kf4 {[%emt 0:00:09]} g5+ {[%emt 0:03:59]} 43. hxg5 {[%emt 0:01:23]} g6 {[%emt 0:01:48]} 44. Rd8 {[%emt 0:00:22]} Rc5 {[%emt 0:00:59]} 45. Rb8 {[%emt 0:00:14]} Kf7 {[%emt 0:02:11]} 46. b4 {[%emt 0:00:14]} Rc1 {[%emt 0:00:26]} 47. Rxb5 {[%emt 0:00:21]} Rf1+ {[%emt 0:00:10]} 48. Ke5 {[%emt 0:00:50]} Rg1 {[%emt 0:00:49]} 49. Rb7+ {[%emt 0:00:05]} Kf8 {[%emt 0:00:12]} 50. Kf6 {[%emt 0:00:06]} 1-0

[Event "TUR-ch Youth U17 2019"]
[Site "Belek"]
[Date "2019.01.21"]
[Round "2"]
[White "Kargaci, Humeyra"]
[Black "Kocyigit, Buse Naz"]
[Result "0-1"]
[ECO "A16"]
[WhiteElo "1740"]
[BlackElo "2043"]
[Annotator "NA"]
[PlyCount "118"]
[EventDate "2019.01.20"]
[EventType "swiss"]
[EventCountry "TUR"]
[SourceTitle "playchess.com"]
[Source "ChessBase"]
[SourceQuality "1"]
[TimeControl "5400+30"]

1. c4 Nf6 {[%emt 0:00:30]} 2. Nc3 {[%emt 0:00:30]} d5 {[%emt 0:00:30]} 3. g3 {[%emt 0:00:30] A16: English Opening: 1...Nf6 with ...d5} (3. cxd5 Nxd5 4. Nf3 g6 5. Qb3 Nb6 6. d4 Bg7 7. Bf4 Be6 8. Qa3 O-O 9. e3 N8d7 10. Rd1 c6 11. Ng5 Bf5 12. e4 Bg4 13. Be2 Bxe2 14. Nxe2 Qe8 {1-0 (32) Duda,J (2739)-Ivanchuk,V (2710) Batumi 2018}) 3... d4 {[%emt 0:01:00]} 4. Nb1 {[%emt 0:02:00]} c5 {[%emt 0:06:30]} 5. d3 {[%emt 0:06:30]} Nc6 {[%emt 0:01:30]} 6. Bg2 {[%emt 0:01:30]} Qc7 $146 {[%emt 0:02:30]} ({Predecessor:} 6... e5 7. Nd2 Bd6 8. Ne4 Nxe4 9. Bxe4 O-O 10. Bg2 f5 {½-½ (54) Csavajda,P (1956)-Banszegi,A (2034) Hungary 2018}) 7. Nf3 {[%emt 0:02:30]} e5 {[%emt 0:02:30]} 8. Nbd2 {[%emt 0:04:30]} Be7 {[%emt 0:01:30]} 9. O-O {[%emt 0:04:30]} O-O {[%emt 0:02:30]} 10. Re1 {[%emt 0:05:30]} Ne8 {[%emt 0:11:30]} 11. e4 {[%emt 0:00:30]} dxe3 {[%emt 0:46:30]} 12. Rxe3 {[%emt 0:41:00]} f5 {[%emt 0:03:30]} 13. b3 {[%emt 0:09:30]} Bf6 {[%emt 0:04:30]} 14. Rb1 {[%emt 0:09:30]} Nd6 {[%emt 0:16:30]} 15. Ba3 {[%emt 0:04:30]} Qa5 {[%emt 0:00:30]} 16. Bb2 {[%emt 0:01:30]} Nf7 {[%emt 0:00:30]} 17. a3 {[%emt 0:04:30]} Qd8 {[%emt 0:04:30]} 18. Qc2 {[%emt 0:01:30]} (18. b4 $5) 18... g5 {[%emt 0:02:30]} 19. h3 {[%emt 0:08:10]} h5 {[%emt 0:02:23]} 20. Ree1 {[%emt 0:04:03]} Be6 {[%emt 0:06:01]} 21. Nh2 {[%emt 0:03:52]} ({Better is} 21. h4 $11 gxh4 22. Nxh4) 21... Qd6 {[%emt 0:02:09]} 22. Rbd1 {[%emt 0:02:52]} Rad8 {[%emt 0:00:01]} 23. Nb1 {[%emt 0:00:16]} Nd4 {[%emt 0:04:28]} 24. Bxd4 {[%emt 0:01:09]} Qxd4 {[%emt 0:00:21]} 25. Nc3 {[%emt 0:02:59]} g4 {[%emt 0:04:05]} (25... Qd7 $11 {remains equal.}) 26. Bd5 {[%emt 0:02:22]} e4 {[%emt 0:03:49]} 27. Ne2 {[%emt 0:03:59]} Qe5 {[%emt 0:00:25]} 28. dxe4 {[%emt 0:00:40]} Ng5 {[%emt 0:00:43]} 29. Bxe6+ {[%emt 0:00:31]} Qxe6 {[%emt 0:00:28]} 30. Nf4 {[%emt 0:00:52]} Rxd1 {[%emt 0:00:31]} 31. Qxd1 {[%emt 0:00:30]} Qf7 {[%emt 0:00:32]} 32. e5 {[%emt 0:00:43]} Rd8 {[%emt 0:00:29]} 33. Qe2 {[%emt 0:00:30]} Ne4 {[%emt 0:00:33]} 34. exf6 $18 {[%emt 0:01:13]} Rd2 {[%emt 0:00:01]} 35. Qe3 {[%emt 0:00:12]} Qxf6 {[%emt 0:00:57]} 36. Nd5 {[%emt 0:00:24]} Qb2 {[%emt 0:00:26]} 37. Rf1 {[%emt 0:00:41]} Re2 {[%emt 0:00:36]} 38. Qf4 {[%emt 0:00:23]} Nd2 {[%emt 0:00:26]} 39. Qg5+ {[%emt 0:00:38]} Kf7 {[%emt 0:01:01]} 40. Qxf5+ {[%emt 0:00:05]} Kg7 {[%emt 0:00:01]} 41. Qg5+ {[%emt 0:00:17]} Kf8 {[%emt 0:00:24]} 42. Qf6+ {[%emt 0:01:02]} Qxf6 {[%emt 0:00:30]} 43. Nxf6 {[%emt 0:00:30]} Nxf1 {[%emt 0:00:30]} 44. Kxf1 {[%emt 0:00:30]} Rb2 {[%emt 0:00:30]} 45. hxg4 {[%emt 0:00:30]} hxg4 {[%emt 0:00:30]} 46. Nd7+ {[%emt 0:00:30]} Ke7 {[%emt 0:00:30]} 47. Nxc5 {[%emt 0:00:30]} b6 {[%emt 0:00:00]} 48. Ne4 {[%emt 0:00:14]} Rxb3 {[%emt 0:00:00]} 49. Nxg4 {[%emt 0:00:20]} Rxa3 {[%emt 0:00:00]} 50. Ne3 {[%emt 0:00:47]} Rb3 {[%emt 0:01:43]} 51. Ke2 {[%emt 0:00:43]} Ke6 {[%emt 0:00:58]} 52. Nd2 {[%emt 0:00:02]} Ra3 {[%emt 0:00:24]} 53. Nf3 {[%emt 0:00:09]} Ra2+ {[%emt 0:00:19]} 54. Nd2 {[%emt 0:00:41]} Kd6 {[%emt 0:00:43]} 55. Kd3 {[%emt 0:00:39]} Ra1 {[%emt 0:00:31]} 56. Ne4+ {[%emt 0:00:30]} Kc6 {[%emt 0:00:27]} 57. Nc2 {[%emt 0:00:35]} Rd1+ {[%emt 0:00:27]} 58. Ke2 {[%emt 0:00:34]} Rd8 {[%emt 0:00:20]} 59. Nb4+ {[%emt 0:00:31]} Kb7 {[%emt 0:00:36]} 0-1

[Event "TUR-ch Youth U17 2019"]
[Site "Belek"]
[Date "2019.01.21"]
[Round "2"]
[White "Akti, Ezgi"]
[Black "Sahin, Hayrun Nisa"]
[Result "1/2-1/2"]
[ECO "B71"]
[WhiteElo "1713"]
[BlackElo "1743"]
[Annotator "NA RC"]
[PlyCount "123"]
[EventDate "2019.01.20"]
[EventType "swiss"]
[EventCountry "TUR"]
[SourceTitle "playchess.com"]
[Source "ChessBase"]
[SourceQuality "1"]
[TimeControl "5400+30"]

1. e4 c5 2. Nf3 d6 3. d4 cxd4 4. Nxd4 Nf6 5. Nc3 g6 6. f4 Nc6 7. Nxc6 bxc6 8. e5 Nd7 9. exd6 exd6 10. Be3 Nf6 11. Qd2 Bg7 12. O-O-O d5 13. Bc5 {[%emt 0:50:30]} Be6 {[%emt 0:36:30]} 14. Be2 {[%emt 0:10:30]} Rb8 {[%emt 0:24:30]} 15. Bf3 {[%emt 0:13:30]} Qa5 {[%emt 0:05:30]} 16. Qe3 {[%emt 0:08:41]} Nd7 {[%emt 0:13:08]} 17. Bd4 {[%emt 0:03:02]} O-O {[%emt 0:01:10]} 18. Bxg7 {[%emt 0:00:59]} Kxg7 {[%emt 0:00:04]} 19. g4 {[%emt 0:03:09]} Qb6 {[%emt 0:10:39]} 20. Qxb6 {[%emt 0:01:29]} Rxb6 {[%emt 0:00:39]} 21. Rhg1 {[%emt 0:00:46]} f5 {[%emt 0:01:29]} 22. g5 {[%emt 0:00:16]} Nc5 {[%emt 0:00:42]} 23. Ne2 {[%emt 0:01:45]} Bf7 {[%emt 0:00:37]} 24. Nd4 {[%emt 0:02:01]} Na4 {[%emt 0:00:21]} 25. Nb3 {[%emt 0:02:04]} Rb4 {[%emt 0:00:29]} 26. Rd4 {[%emt 0:00:15]} Rxd4 {[%emt 0:01:28]} 27. Nxd4 {[%emt 0:00:11]} Rb8 {[%emt 0:00:31]} 28. b3 {[%emt 0:00:19]} Rb4 {[%emt 0:02:00]} 29. Ne2 {[%emt 0:00:58]} Nc5 {[%emt 0:00:14]} 30. c3 {[%emt 0:00:38]} Rb8 {[%emt 0:00:54]} 31. b4 {[%emt 0:01:23]} Ne6 {[%emt 0:01:50]} 32. Rd1 {[%emt 0:01:05]} Kf8 {[%emt 0:01:09]} 33. Kc2 {[%emt 0:00:36]} Ke7 {[%emt 0:00:12]} 34. a3 {[%emt 0:00:52]} Rb6 {[%emt 0:00:42]} 35. Re1 {[%emt 0:01:02]} Kd6 {[%emt 0:00:35]} 36. Rd1 {[%emt 0:00:10]} Ke7 {[%emt 0:00:26]} 37. Kd2 {[%emt 0:01:16]} Ra6 {[%emt 0:01:11]} 38. Ra1 {[%emt 0:00:06]} c5 {[%emt 0:00:35]} 39. b5 {[%emt 0:01:19]} Rd6 {[%emt 0:00:18]} 40. Re1 {[%emt 0:00:32]} Be8 {[%emt 0:00:06]} 41. a4 {[%emt 0:00:24]} a6 {[%emt 0:00:10]} 42. bxa6 {[%emt 0:01:03]} Rxa6 {[%emt 0:00:01]} 43. Bxd5 {[%emt 0:00:01]} Rd6 {[%emt 0:02:24]} 44. c4 {[%emt 0:00:04]} Bc6 {[%emt 0:00:15]} 45. Nc3 {[%emt 0:00:16]} Bd7 {[%emt 0:00:33]} 46. Kc2 {[%emt 0:00:53]} Kd8 {[%emt 0:00:46]} 47. Bxe6 {[%emt 0:00:30]} Bxe6 {[%emt 0:00:30]} 48. Nb5 {[%emt 0:00:30]} Ra6 {[%emt 0:00:30]} 49. Kb3 {[%emt 0:00:30]} Kd7 {[%emt 0:00:30]} 50. Re5 {[%emt 0:00:30]} Bxc4+ {[%emt 0:00:30]} 51. Kxc4 {[%emt 0:00:30]} Rxa4+ {[%emt 0:00:30]} 52. Kxc5 {[%emt 0:00:30]} Rxf4 {[%emt 0:00:30]} 53. Rd5+ {[%emt 0:00:30]} Ke7 {[%emt 0:00:30]} 54. Rd4 {[%emt 0:00:30]} Rf2 {[%emt 0:00:30]} 55. Rh4 {[%emt 0:00:30]} Rg2 {[%emt 0:00:30]} 56. Rxh7+ {[%emt 0:00:30]} Ke6 {[%emt 0:00:30]} 57. Nd4+ {[%emt 0:00:30]} Ke5 {[%emt 0:00:30]} 58. Re7+ {[%emt 0:00:30]} Kf4 {[%emt 0:00:30]} 59. Ne6+ {[%emt 0:00:30]} Kg4 {[%emt 0:00:30]} 60. h3+ {[%emt 0:00:30]} Kg3 {[%emt 0:00:30]} 61. Kd4 {[%emt 0:00:30]} Re2 {[%emt 0:00:30]} 62. Re8 {[%emt 0:00:30]} 1/2-1/2

[Event "TUR-ch Youth U17 2019"]
[Site "Belek"]
[Date "2019.01.21"]
[Round "2"]
[White "Ozcan, Berk"]
[Black "Gunduz, Umut Erdem"]
[Result "0-1"]
[ECO "C88"]
[WhiteElo "1709"]
[BlackElo "2255"]
[Annotator "NA"]
[PlyCount "108"]
[EventDate "2019.01.20"]
[EventType "swiss"]
[EventCountry "TUR"]
[SourceTitle "playchess.com"]
[Source "ChessBase"]
[SourceQuality "1"]
[TimeControl "5400+30"]

{[%evp 18,101,52,12,30,24,15,0,14,6,8,17,20,13,37,36,139,22,21,0,32767,32767,42,43,52,-244,32767,32767,32767,32767,32767,32767,32767,32767,32767,79,32767,32767,32767,32767,-258,-245,-216,32767,-345,-407,-468,-406,-314,-402,-420,-429,-491,-431,-556,-576,-529,32767,-543,-478,32767,32767,-703,32767,32767,-608,32767,-592,32767,32767,32767,-872,-1189,-1390,-844,-1554,-1150,-951,32767,-1172,32767,32767,32767,32767,32767,-1191]} 1. e4 e5 {[%emt 0:00:30]} 2. Nf3 {[%emt 0:00:30]} Nc6 {[%emt 0:00:30]} 3. Bb5 {[%emt 0:00:00]} a6 {[%emt 0:00:30]} 4. Ba4 {[%emt 0:00:00]} Nf6 {[%emt 0:04:30]} 5. O-O {[%emt 0:00:30]} Be7 {[%emt 0:00:30]} 6. Re1 {[%emt 0:00:30]} b5 {[%emt 0:00:00]} 7. Bb3 {[%emt 0:00:00]} O-O {[%emt 0:00:00]} 8. h3 {[%emt 0:00:30]} Bb7 {[%emt 0:00:30]} 9. d3 {[%emt 0:01:00]} d5 {[%emt 0:00:30] C88: Closed Ruy Lopez: Anti-Marshall Systems} 10. exd5 {[%emt 0:02:30]} Nxd5 {[%emt 0:00:30]} 11. Nxe5 {[%emt 0:00:30]} (11. a4 Nd4 12. Nxd4 exd4 13. axb5 axb5 14. Rxa8 Bxa8 15. Na3 Bb4 16. Bd2 Bxd2 17. Qxd2 {1-0 (85) Wei,Y (2735)-Inarkiev,E (2690) Magas 2018}) 11... Nd4 {[%emt 0:00:00]} 12. Nc3 {[%emt 0:04:30]} Nb4 {[%emt 0:00:30]} 13. Ne4 {[%emt 0:11:30]} Nxb3 {[%emt 0:09:30]} 14. axb3 {[%emt 0:00:30] LiveBook: 12 Games} f6 {[%emt 0:05:30]} 15. Nf3 {[%emt 0:02:00]} f5 {[%emt 0:03:30]} 16. Neg5 {[%emt 0:06:30] [#]} Rf6 $146 {[%emt 0:06:30]} ({Predecessor:} 16... Bxg5 $1 $11 {keeps the balance.} 17. Nxg5 {½-½ (25) Pikula,D (2547)-Brenjo,S (2522) Vrnjacka Banja 2010} Qd5) 17. Qe2 {[%emt 0:51:30]} (17. d4 $16) 17... Bd6 {[%emt 0:37:30]} 18. Nd4 {[%emt 0:21:30]} Qd7 {[%emt 0:12:30]} 19. c3 {[%emt 0:02:30]} Nd5 {[%emt 0:06:30]} (19... c5 $15) 20. b4 {[%emt 0:01:30]} Nxb4 {[%emt 0:12:30]} 21. cxb4 $14 {[%emt 0:20:02] stays ahead.} (21. Nc2 $2 {[%emt 0:20:02][%mdl 8192]}) 21... Bxb4 {[%emt 0:00:30]} 22. Nc2 {[%emt 0:00:30]} Bxe1 {[%emt 0:00:30]} 23. Nxe1 {[%emt 0:00:30]} Re8 {[%emt 0:00:30]} 24. Qd1 {[%emt 0:00:30]} Qd5 {[%emt 0:00:30]} 25. Ngf3 {[%emt 0:01:23]} Rfe6 {[%emt 0:04:30]} 26. Be3 {[%emt 0:01:37]} f4 {[%emt 0:06:30]} 27. Bxf4 {[%emt 0:00:12]} Rxe1+ {[%emt 0:00:30]} 28. Qxe1 {[%emt 0:00:01]} Rxe1+ {[%emt 0:00:30]} 29. Rxe1 {[%emt 0:00:04]} h6 {[%emt 0:01:30]} 30. d4 {[%emt 0:02:22]} Qf7 {[%emt 0:01:08]} 31. Bg3 {[%emt 0:00:31]} Bxf3 {[%emt 0:01:03]} 32. gxf3 {[%emt 0:00:03]} c6 {[%emt 0:00:00]} 33. Be5 {[%emt 0:01:13]} Qxf3 {[%emt 0:00:05]} 34. Re3 {[%emt 0:00:17]} Qd1+ {[%emt 0:01:12]} 35. Kg2 {[%emt 0:00:13]} a5 {[%emt 0:00:44]} 36. Rc3 {[%emt 0:00:56]} Qb1 {[%emt 0:00:16]} 37. b3 {[%emt 0:00:34]} a4 {[%emt 0:00:24]} 38. bxa4 {[%emt 0:00:20]} bxa4 {[%emt 0:01:10]} 39. Ra3 {[%emt 0:00:30]} Qb4 {[%emt 0:01:22]} 40. Rg3 {[%emt 0:00:26]} Qf8 {[%emt 0:04:08]} 41. Rg6 {[%emt 0:00:39]} a3 {[%emt 0:03:24]} 42. Rxc6 {[%emt 0:00:08]} Qa8 {[%emt 0:02:01]} 43. d5 {[%emt 0:00:14]} Qd8 {[%emt 0:00:00]} 44. Rd6 {[%emt 0:01:32]} Qg5+ {[%emt 0:00:00] Double Attack} 45. Bg3 {[%emt 0:00:30]} a2 {[%emt 0:00:00]} 46. h4 {[%emt 0:00:09] [#]} Qf6 $1 {[%emt 0:01:00]} 47. Rxf6 {[%emt 0:00:47]} gxf6 {[%emt 0:00:03]} 48. d6 {[%emt 0:00:04]} a1=Q {[%emt 0:00:05]} 49. Bf4 {[%emt 0:00:43]} h5 {[%emt 0:00:06]} 50. Kg3 {[%emt 0:00:00]} Kf7 {[%emt 0:01:26]} 51. Kf3 $19 {[%emt 0:00:00]} Ke6 {[%emt 0:00:00]} 52. Bg3 {[%emt 0:00:05]} Qd4 {[%emt 0:00:13]} 53. Kg2 {[%emt 0:00:10]} f5 {[%emt 0:00:08]} 54. Kf3 {[%emt 0:00:30]} Qe4# {[%emt 0:00:00]} 0-1

[Event "TUR-ch Youth U17 2019"]
[Site "Belek"]
[Date "2019.01.21"]
[Round "3"]
[White "Gunduz, Umut Erdem"]
[Black "Guncan, Berke"]
[Result "1/2-1/2"]
[ECO "B01"]
[WhiteElo "2255"]
[BlackElo "2016"]
[Annotator "NA"]
[PlyCount "47"]
[EventDate "2019.01.20"]
[EventType "swiss"]
[EventCountry "TUR"]
[SourceTitle "playchess.com"]
[Source "ChessBase"]
[SourceQuality "1"]
[TimeControl "5400+30"]

{[%evp 11,37,-23,110,32767,108,95,32767,131,178,187,184,181,174,117,186,179,128,139,162,124,128,84,84,32767,32767,32767,32767,30]} 1. e4 {[%emt 0:00:30]} d5 {[%emt 0:00:30]} 2. exd5 {[%emt 0:00:30]} Qxd5 {[%emt 0:00:30]} 3. Nc3 {[%emt 0:00:00]} Qd6 {[%emt 0:00:30]} 4. d4 {[%emt 0:00:00]} Nf6 {[%emt 0:00:30]} 5. Nf3 {[%emt 0:00:30]} a6 {[%emt 0:00:30]} 6. Ne5 {[%emt 0:11:30]} ({Better is} 6. Bd3 $14) 6... c5 {[%emt 0:07:30] B01: Scandinavian Defence} (6... Nc6 $11 {remains equal.}) 7. Nc4 {[%emt 0:03:30]} Qe6+ {[%emt 0:05:30] [#]} 8. Be3 $1 {[%emt 0:00:30]} cxd4 {[%emt 0:01:30]} 9. Qxd4 {[%emt 0:00:30]} Nbd7 $146 {[%emt 0:04:30]} ({Predecessor:} 9... Nc6 10. Qd2 Bd7 11. O-O-O Rd8 12. Bb6 g6 13. Bxd8 Nxd8 14. Kb1 {1-0 (25) Stellwagen,D (2561)-Werner,D (2376) Germany 2006}) 10. O-O-O {[%emt 0:01:30]} g6 {[%emt 0:04:30]} 11. Qd2 {[%emt 0:37:30]} Bg7 {[%emt 0:11:30]} 12. Nb6 {[%emt 0:03:30]} Rb8 {[%emt 0:00:30]} 13. Bc4 {[%emt 0:00:00]} Qc6 {[%emt 0:01:30]} ({Better is} 13... Qd6 $18) 14. Ncd5 {[%emt 0:01:00]} Nxd5 {[%emt 0:03:30]} 15. Bxd5 {[%emt 0:02:30]} ({Don't take} 15. Qxd5 $6 Qxd5 16. Nxd5 b5 $16) 15... Qf6 {[%emt 0:03:30]} 16. c3 {[%emt 0:07:30]} O-O {[%emt 0:01:30]} ({But not} 16... Nxb6 $2 {[#]} 17. Bc6+ $1 {[%mdl 512]} Bd7 18. Bxd7+ Kf8 19. Bb5 $1 $18 {[%mdl 512]}) 17. Nxd7 {[%emt 0:04:30]} Bxd7 {[%emt 0:00:30]} 18. Bxf7+ {[%emt 0:01:30]} Qxf7 {[%emt 0:00:30]} 19. Qxd7 $11 {[%emt 0:00:30]} Qxa2 {[%emt 0:00:30]} 20. Qxe7 {[%emt 0:00:30]} Rf7 {[%emt 0:12:30]} 21. Qe4 {[%emt 0:02:30]} Rc8 {[%emt 0:01:30]} 22. Qb1 {[%emt 0:01:43]} Qa5 {[%emt 0:02:30]} 23. Rd3 {[%emt 0:07:44]} b5 {[%emt 0:01:30]} 24. Kd1 {[%emt 0:03:30]} 1/2-1/2